bitfinex-derivatives/quotes_BTCF0:USTF0_20251213
["timestamp","ask_amount","ask_price","bid_price","bid_amount"]
[1765647636443,0.07973009,90125.0,90122.0,0.0110951]
[1765647636641,0.13978371,90139.0,90133.0,0.05749]
[1765647636642,0.09962622,90134.0,90133.0,0.05749]
[1765647636837,0.51916,90137.0,90135.0,0.05749]
[1765647637045,0.51916,90137.0,90136.0,0.05749]
[1765647637245,0.55489029,90137.0,90136.0,0.05749]
[1765647637649,0.55489029,90137.0,90136.0,0.62429]
[1765647637850,0.55489029,90137.0,90136.0,0.99549]
[1765647638050,0.55489029,90137.0,90136.0,0.81119]
[1765647638258,0.55489029,90137.0,90136.0,0.59489]
[1765647638259,0.52479029,90137.0,90136.0,0.59489]
[1765647639539,0.00016646,90146.0,90145.0,0.05749]
[1765647639747,0.00016646,90146.0,90145.0,0.41829]
[1765647639939,0.00016646,90146.0,90145.0,0.86699]
[1765647640139,0.00016646,90146.0,90145.0,0.41829]
[1765647640454,0.00016646,90146.0,90145.0,0.93379]
[1765647640853,0.00559473,90156.0,90155.0,0.05749]
[1765647641154,0.42086,90163.0,90162.0,0.05749]
[1765647641458,0.51588,90165.0,90164.0,0.07122]
[1765647641653,0.12326784,90172.0,90164.0,0.07122]
[1765647641654,0.12326784,90172.0,90171.0,0.05749]
[1765647641854,0.03567876,90172.0,90171.0,0.05749]
[1765647642045,0.06563876,90172.0,90171.0,0.05749]
[1765647642246,0.06563876,90172.0,90171.0,0.02791]
[1765647642247,0.08356876,90172.0,90171.0,0.02791]
[1765647642558,0.08356876,90172.0,90171.0,0.43011]
[1765647642752,0.08356876,90172.0,90171.0,0.45969]
[1765647642951,0.08356876,90172.0,90171.0,0.40299]
[1765647643160,0.08456876,90172.0,90171.0,0.40299]
[1765647644758,0.08556876,90172.0,90171.0,0.40299]
[1765647647250,0.16479178,90172.0,90171.0,0.40299]
[1765647648160,0.08556876,90172.0,90171.0,0.40299]
[1765647648752,0.06763876,90172.0,90171.0,0.40299]
[1765647650657,0.08556876,90172.0,90171.0,0.40299]
[1765647661274,0.44636876,90172.0,90171.0,0.40299]
[1765647663758,0.44636876,90172.0,90171.0,0.3455]
[1765647664163,0.44636876,90172.0,90171.0,0.40131]
[1765647666266,0.44636876,90172.0,90171.0,0.05581]
[1765647672678,0.44636876,90172.0,90171.0,0.02801]
[1765647673483,0.44636876,90172.0,90171.0,0.05581]
[1765647674184,0.05707,90169.0,90168.0,0.02801]
[1765647674386,0.74975,90169.0,90168.0,0.02801]
[1765647675184,0.74975,90169.0,90168.0,0.05581]
[1765647675388,0.75075,90169.0,90168.0,0.05581]
[1765647675585,0.75175,90169.0,90168.0,0.05581]
[1765647691391,0.85153046,90169.0,90168.0,0.05581]
[1765647692294,0.85153046,90169.0,90168.0,0.02801]
[1765647692596,0.05847,90166.0,90165.0,0.3468]
[1765647692984,0.05847,90163.0,90162.0,0.00016637]
[1765647695302,0.05847,90163.0,90162.0,0.50296637]
[1765647695493,0.05847,90163.0,90162.0,0.00016637]
[1765647697402,0.05847,90163.0,90162.0,0.02913637]
[1765647697899,0.05847,90163.0,90162.0,0.00016637]
[1765647701600,0.41927,90163.0,90162.0,0.00016637]
[1765647708602,0.05847,90158.0,90157.0,0.2791]
[1765647708805,0.75111,90158.0,90157.0,0.2791]
[1765647709009,0.02916,90140.0,90139.0,0.068873]
[1765647709707,0.02916,90140.0,90139.0,0.367573]
[1765647710008,0.02916,90140.0,90139.0,0.35648]
[1765647710213,0.05847,90140.0,90139.0,0.35648]
[1765647710904,0.05847,90140.0,90139.0,0.36048]
[1765647711908,0.02916,90140.0,90139.0,0.36048]
[1765647712605,0.02916,90140.0,90139.0,0.36248]
[1765647713509,0.00549258,90140.0,90139.0,0.35848]
[1765647713713,0.07559,90147.0,90146.0,0.05778]
[1765647713914,0.08118917,90147.0,90146.0,0.05778]
[1765647715213,0.08118917,90147.0,90146.0,0.05878]
[1765647716214,0.08118917,90147.0,90146.0,0.05978]
[1765647720414,0.00559917,90147.0,90146.0,0.05978]
[1765647720619,0.69280637,90149.0,90148.0,0.05648]
[1765647721121,0.69835328,90149.0,90148.0,0.38568]
[1765647721321,0.69835328,90149.0,90148.0,0.72688]
[1765647721521,0.72808328,90149.0,90148.0,0.39768]
[1765647721821,0.75573328,90149.0,90148.0,0.39768]
[1765647722920,0.75573328,90149.0,90148.0,0.39868]
[1765647724322,0.75573328,90149.0,90148.0,0.39968]
[1765647725026,0.75573328,90149.0,90148.0,0.37096]
[1765647725220,0.75573328,90149.0,90148.0,0.02976]
[1765647725419,0.75573328,90149.0,90148.0,0.05848]
[1765647726717,0.83550133,90149.0,90148.0,0.05848]
[1765647727119,0.75573328,90149.0,90148.0,0.05848]
[1765647727624,1.11653328,90149.0,90148.0,0.05848]
[1765647731713,1.19630133,90149.0,90148.0,0.02976]
[1765647733332,1.11653328,90149.0,90148.0,0.02976]
[1765647734222,1.11653328,90149.0,90148.0,0.002]
[1765647734914,1.11653328,90149.0,90148.0,0.02976]
[1765647737326,1.11653328,90149.0,90148.0,0.002]
[1765647737726,1.11653328,90149.0,90148.0,0.02976]
[1765647738520,1.11653328,90149.0,90148.0,0.002]
[1765647739231,1.11653328,90149.0,90148.0,0.05848]
[1765647739531,0.75573328,90149.0,90148.0,0.05848]
[1765647745536,0.75573328,90149.0,90148.0,0.02976]
[1765647745728,0.75573328,90149.0,90148.0,0.002]
[1765647746129,0.75573328,90149.0,90143.0,0.32]
[1765647746130,0.07617,90144.0,90143.0,0.32]
[1765647746533,0.05846,90136.0,90135.0,0.38854]
[1765647746734,0.05846,90136.0,90135.0,0.41677]
[1765647747237,0.01771,90141.0,90140.0,0.0670629]
[1765647747238,0.02903,90141.0,90140.0,0.0670629]
[1765647747739,0.17595331,90147.0,90146.0,0.05597]
[1765647749341,0.17695331,90147.0,90146.0,0.05597]
[1765647753040,0.17795331,90147.0,90146.0,0.05597]
[1765647753437,0.07817,90147.0,90146.0,0.05597]
[1765647763445,0.06046,90147.0,90146.0,0.05597]
[1765647763639,0.002,90147.0,90146.0,0.05597]
[1765647764052,0.002,90147.0,90146.0,0.39287]
[1765647764444,0.002,90147.0,90146.0,0.37867]
[1765647764750,0.002,90147.0,90146.0,0.41187]
[1765647764941,0.03103,90147.0,90146.0,0.41187]
[1765647766447,0.002,90147.0,90146.0,0.41187]
[1765647768050,0.06046,90147.0,90146.0,0.41187]
[1765647770648,0.03103,90147.0,90146.0,0.41187]
[1765647773550,0.06046,90147.0,90146.0,0.41187]
[1765647778459,0.03103,90147.0,90146.0,0.41187]
[1765647778760,0.002,90147.0,90146.0,0.41187]
[1765647781662,0.06077,90147.0,90146.0,0.41187]
[1765647800882,0.00571328,90149.0,90148.0,0.0694]
[1765647801084,0.00016637,90149.0,90148.0,0.0694]
[1765647801280,0.00016637,90149.0,90148.0,0.47040301]
[1765647801482,0.00016637,90149.0,90148.0,0.4396]
[1765647802188,0.00116637,90149.0,90148.0,0.4406]
[1765647803181,0.00016637,90149.0,90148.0,0.4416]
[1765647824902,0.00016637,90149.0,90148.0,0.8024]
[1765647830505,0.00016637,90149.0,90148.0,0.83328409]
[1765647833303,0.00016637,90149.0,90148.0,0.8024]
[1765647833505,0.08005553,90149.0,90148.0,0.8024]
[1765647840506,0.00016637,90149.0,90148.0,0.8024]
[1765647840702,0.08005553,90149.0,90148.0,0.8024]
[1765647841102,0.00016637,90149.0,90148.0,0.8024]
[1765647841415,0.08005553,90149.0,90148.0,0.8024]
[1765647843312,0.00016637,90149.0,90148.0,0.83328651]
[1765647848416,0.00016637,90149.0,90148.0,0.47248651]
[1765647848715,0.00016637,90149.0,90148.0,1.19408651]
[1765647849720,0.00016637,90149.0,90148.0,0.47248651]
[1765647850019,0.00016637,90149.0,90148.0,1.19408651]
[1765647858528,0.02777637,90149.0,90148.0,0.45882651]
[1765647858727,0.00016637,90149.0,90148.0,1.18042651]
[1765647867735,0.02857637,90149.0,90148.0,1.18042651]
[1765647868433,0.00016637,90149.0,90148.0,1.18042651]
[1765647868829,0.00016637,90149.0,90148.0,1.19401651]
[1765647869037,0.05615,90166.0,90165.0,0.05513]
[1765647869238,0.06163377,90166.0,90165.0,0.4270198]
[1765647869732,0.06163377,90166.0,90165.0,0.9854198]
[1765647870426,0.03388377,90166.0,90165.0,0.9854198]
[1765647872429,0.03488377,90166.0,90165.0,0.9854198]
[1765647874938,0.0294,90166.0,90165.0,0.9854198]
[1765647875140,0.001,90166.0,90165.0,0.9854198]
[1765647875738,0.0294,90166.0,90165.0,0.9854198]
[1765647878041,0.08074644,90166.0,90165.0,0.9854198]
[1765647878433,0.13689644,90166.0,90165.0,0.9854198]
[1765647878635,0.05715,90166.0,90165.0,0.9854198]
[1765647880338,0.13688341,90166.0,90165.0,0.9854198]
[1765647883448,0.05715,90166.0,90165.0,0.9854198]
[1765647887646,0.05715,90166.0,90165.0,0.6246198]
[1765647887952,0.05715,90166.0,90165.0,0.9854198]
[1765647888950,0.07463,90166.0,90165.0,0.9854198]
[1765647891152,0.07463,90166.0,90165.0,0.97433]
[1765647892251,0.07463,90166.0,90165.0,1.05113]
[1765647894858,0.05715,90166.0,90165.0,1.05113]
[1765647896548,0.05715,90166.0,90165.0,0.69033]
[1765647896749,0.05715,90166.0,90165.0,1.05113]
[1765647898566,0.05615,90166.0,90165.0,1.05113]
[1765647900949,0.07367,90166.0,90165.0,1.05113]
[1765647901762,0.15340341,90166.0,90165.0,1.05113]
[1765647901962,0.07367,90166.0,90165.0,1.05113]
[1765647903967,0.08536392,90169.0,90168.0,0.0791695]
[1765647904157,0.14436392,90169.0,90168.0,0.0656595]
[1765647904466,0.14436392,90169.0,90168.0,0.7010595]
[1765647905056,0.14536392,90169.0,90168.0,0.7010595]
[1765647905261,0.14636392,90169.0,90168.0,0.7010595]
[1765647907166,0.06663051,90169.0,90168.0,0.7010595]
[1765647907562,0.14636392,90169.0,90168.0,0.7010595]
[1765647908167,0.06663051,90169.0,90168.0,0.7010595]
[1765647909369,0.14636392,90169.0,90168.0,0.7010595]
[1765647910472,0.06663051,90169.0,90168.0,0.7010595]
[1765647911073,0.14636392,90169.0,90168.0,0.7010595]
[1765647917678,0.14636392,90169.0,90168.0,1.0618595]
[1765647918275,0.14636392,90169.0,90168.0,1.1281595]
[1765647918480,0.14636392,90169.0,90168.0,1.1148595]
[1765647923581,0.06663051,90169.0,90168.0,1.1148595]
[1765647927583,0.03745051,90169.0,90168.0,1.1148595]
[1765647928678,0.06470051,90169.0,90168.0,1.1148595]
[1765647933572,0.14459878,90169.0,90168.0,1.1148595]
[1765647933973,0.14459878,90169.0,90168.0,1.10377]
[1765647934170,0.06470051,90169.0,90168.0,1.10377]
[1765647942386,0.06470051,90169.0,90168.0,0.74297]
[1765647953084,0.06470051,90169.0,90168.0,0.71574]
[1765647953288,0.75714051,90169.0,90168.0,0.6884]
[1765647953899,0.05686,90157.0,90156.0,0.05676637]
[1765647955093,0.05686,90157.0,90156.0,0.56056637]
[1765647955294,0.13665042,90157.0,90156.0,0.56056637]
[1765647955695,0.13665042,90157.0,90156.0,0.56156637]
[1765647955903,0.05686,90157.0,90156.0,0.56156637]
[1765647956615,0.05686,90157.0,90156.0,0.56256637]
[1765647957600,0.02961,90157.0,90156.0,0.56256637]
[1765647958102,0.05871,90157.0,90156.0,0.56256637]
[1765647967105,0.05871,90157.0,90156.0,0.46316637]
[1765647968398,0.10332681,90157.0,90156.0,0.46316637]
[1765647969907,0.05871,90157.0,90156.0,0.46316637]
[1765647972302,0.05871,90157.0,90156.0,0.46216637]
[1765647972794,0.05971,90157.0,90156.0,0.46116637]
[1765647973798,0.05971,90157.0,90156.0,0.41816637]
[1765647974000,0.05971,90157.0,90156.0,0.43216637]
[1765647975105,0.05971,90157.0,90156.0,0.44325727]
[1765647975910,0.05871,90157.0,90156.0,0.44325727]
[1765647976501,0.07973915,90159.0,90158.0,0.05646]
[1765647976700,0.10750915,90159.0,90158.0,0.05646]
[1765647976909,0.13660915,90159.0,90158.0,0.40136]
[1765647978313,0.05787,90159.0,90158.0,0.40136]
[1765647978502,0.05887,90159.0,90158.0,0.40136]
[1765648008825,0.10345356,90159.0,90158.0,0.40136]
[1765648009821,0.05887,90159.0,90158.0,0.40136]
[1765648019636,0.05887,90159.0,90158.0,0.41516]
[1765648021637,0.02977,90159.0,90158.0,0.41516]
[1765648024036,0.05895,90159.0,90158.0,0.41516]
[1765648032742,0.41975,90159.0,90158.0,0.41286]
[1765648033241,0.41975,90159.0,90158.0,0.05646]
[1765648034344,0.46453944,90159.0,90158.0,0.05646]
[1765648034747,0.41975,90159.0,90158.0,0.05646]
[1765648035138,0.46453841,90159.0,90158.0,0.05646]
[1765648036334,0.46327273,90159.0,90158.0,0.05646]
[1765648036740,0.41975,90159.0,90158.0,0.05646]
[1765648036942,0.46327273,90159.0,90158.0,0.05646]
[1765648037141,0.41975,90159.0,90158.0,0.05646]
[1765648038835,0.4631926,90159.0,90158.0,0.05646]
[1765648040046,0.46428201,90159.0,90158.0,0.05646]
[1765648041044,0.41975,90159.0,90158.0,0.05646]
[1765648041235,0.4643357,90159.0,90158.0,0.05646]
[1765648042445,0.46296982,90159.0,90158.0,0.05646]
[1765648042742,0.41975,90159.0,90158.0,0.05646]
[1765648042942,0.46296982,90159.0,90158.0,0.05646]
[1765648043753,0.46347184,90159.0,90158.0,0.05646]
[1765648043951,0.46176184,90159.0,90158.0,0.05646]
[1765648045034,0.46214942,90159.0,90158.0,0.05646]
[1765648045450,0.41804,90159.0,90158.0,0.05646]
[1765648045651,1.1106,90159.0,90158.0,0.05646]
[1765648046663,1.15470942,90159.0,90158.0,0.05646]
[1765648048250,1.15462861,90159.0,90158.0,0.05646]
[1765648048655,1.1106,90159.0,90158.0,0.05646]
[1765648048857,1.15462861,90159.0,90158.0,0.05646]
[1765648049446,1.15475693,90159.0,90158.0,0.05646]
[1765648049655,1.1106,90159.0,90158.0,0.05646]
[1765648051058,1.15475693,90159.0,90158.0,0.05646]
[1765648052156,1.15504454,90159.0,90158.0,0.05646]
[1765648052658,1.1106,90159.0,90158.0,0.05646]
[1765648053256,1.15504454,90159.0,90158.0,0.05646]
[1765648053853,1.15504454,90159.0,90158.0,0.40656]
[1765648054253,1.15504454,90159.0,90158.0,0.05646]
[1765648054458,1.15490561,90159.0,90158.0,0.05646]
[1765648054752,1.1106,90159.0,90158.0,0.05646]
[1765648054960,1.15490561,90159.0,90158.0,0.05646]
[1765648055454,1.15474146,90159.0,90158.0,0.05646]
[1765648055660,1.1106,90159.0,90158.0,0.05646]
[1765648055957,1.15474146,90159.0,90158.0,0.05646]
[1765648056553,1.1106,90159.0,90158.0,0.05646]
[1765648056760,1.15471862,90159.0,90158.0,0.05646]
[1765648057161,1.15471862,90159.0,90158.0,0.0130275]
[1765648057362,1.15471862,90159.0,90158.0,0.0237975]
[1765648057562,1.1106,90159.0,90158.0,0.0237975]
[1765648057762,1.15534089,90159.0,90158.0,0.0237975]
[1765648058764,0.79435376,90159.0,90158.0,0.0237975]
[1765648058965,1.15515376,90159.0,90158.0,0.0237975]
[1765648059665,1.15426301,90159.0,90158.0,0.0237975]
[1765648060063,0.79346301,90159.0,90158.0,0.0237975]
[1765648060362,1.15426301,90159.0,90158.0,0.0237975]
[1765648060863,1.15413236,90159.0,90158.0,0.0237975]
[1765648061672,1.1106,90159.0,90158.0,0.0237975]
[1765648061867,1.15437846,90159.0,90158.0,0.0237975]
[1765648063056,1.15487164,90159.0,90158.0,0.0237975]
[1765648063761,1.1106,90159.0,90158.0,0.0237975]
[1765648064155,1.15487164,90159.0,90158.0,0.0237975]
[1765648064760,1.1106,90159.0,90158.0,0.0237975]
[1765648065253,1.15475748,90159.0,90158.0,0.0237975]
[1765648066462,1.15523677,90159.0,90158.0,0.0237975]
[1765648067265,1.1106,90159.0,90158.0,0.0237975]
[1765648067471,1.15523677,90159.0,90158.0,0.0237975]
[1765648067671,1.15505704,90159.0,90158.0,0.0237975]
[1765648068969,1.15538708,90159.0,90158.0,0.0237975]
[1765648070273,1.15471623,90159.0,90158.0,0.0237975]
[1765648070668,1.1106,90159.0,90158.0,0.0237975]
[1765648070972,1.15471623,90159.0,90158.0,0.0237975]
[1765648071172,1.15514062,90159.0,90158.0,0.0237975]
[1765648072265,1.15385464,90159.0,90158.0,0.0237975]
[1765648072957,1.1106,90159.0,90158.0,0.0237975]
[1765648073164,1.15385464,90159.0,90158.0,0.0237975]
[1765648073371,1.1545646,90159.0,90158.0,0.0237975]
[1765648073770,1.1106,90159.0,90158.0,0.0237975]
[1765648074471,1.1545646,90159.0,90158.0,0.0237975]
[1765648075470,1.1106,90159.0,90158.0,0.0237975]
[1765648075674,1.1545485,90159.0,90158.0,0.0237975]
[1765648076461,0.7937485,90159.0,90158.0,0.0237975]
[1765648076762,0.7498,90159.0,90158.0,0.0237975]
[1765648077067,0.79390852,90159.0,90158.0,0.0237975]
[1765648078179,0.79353285,90159.0,90158.0,0.0237975]
[1765648078665,0.7498,90159.0,90158.0,0.0237975]
[1765648079064,0.79353285,90159.0,90158.0,0.0237975]
[1765648079661,0.7498,90159.0,90158.0,0.0237975]
[1765648080566,0.79309937,90159.0,90158.0,0.0237975]
[1765648081574,0.79426191,90159.0,90158.0,0.0237975]
[1765648082371,0.7498,90159.0,90158.0,0.0237975]
[1765648082570,0.7498,90159.0,90158.0,0.3526975]
[1765648082770,0.79426191,90159.0,90158.0,0.3526975]
[1765648082977,0.79426191,90159.0,90158.0,0.0237975]
[1765648083367,0.79426191,90159.0,90158.0,0.01077]
[1765648083975,0.79323849,90159.0,90158.0,0.01077]
[1765648084378,0.79323849,90159.0,90158.0,0.39647]
[1765648084580,0.79323849,90159.0,90158.0,0.77747]
[1765648084772,0.79323849,90159.0,90158.0,0.39177]
[1765648084972,0.7498,90159.0,90158.0,0.2991]
[1765648085169,0.79320901,90159.0,90158.0,0.36813599]
[1765648085478,0.05681,90157.0,90156.0,0.00016637]
[1765648085784,0.05681,90157.0,90130.0,0.01766]
[1765648085785,0.05681,90131.0,90130.0,0.07245]
[1765648085972,0.27589,90131.0,90130.0,0.07245]
[1765648086282,0.27589,90131.0,90130.0,0.34765]
[1765648086776,0.35575507,90131.0,90130.0,0.34765]
[1765648086970,0.35575507,90131.0,90130.0,0.35165]
[1765648087171,0.27589,90131.0,90130.0,0.35165]
[1765648087470,0.27589,90131.0,90130.0,0.34865]
[1765648088374,0.27589,90131.0,90130.0,0.35065]
[1765648090576,0.2813271,90131.0,90130.0,0.35065]
[1765648093483,0.2813271,90131.0,90130.0,0.34965]
[1765648093784,0.2813271,90131.0,90130.0,0.34765]
[1765648096393,0.2813271,90131.0,90130.0,0.32999]
[1765648096785,0.2813271,90131.0,90130.0,0.34765]
[1765648105800,0.2813271,90131.0,90130.0,0.70845]
[1765648109203,0.08530217,90131.0,90130.0,0.70845]
[1765648109395,0.00016637,90140.0,90139.0,0.126783]
[1765648109601,0.04326209,90151.0,90150.0,0.13208]
[1765648109800,0.04317001,90158.0,90156.0,0.1267809]
[1765648110104,0.28328625,90157.0,90156.0,0.1267809]
[1765648110906,0.32725197,90157.0,90156.0,0.6277809]
[1765648111097,0.32725197,90157.0,90156.0,1.0354809]
[1765648111405,0.32725197,90157.0,90156.0,0.5344809]
[1765648111904,0.32825197,90157.0,90156.0,0.5344809]
[1765648112104,0.32819718,90157.0,90156.0,0.5344809]
[1765648112306,0.32919718,90157.0,90156.0,0.5344809]
[1765648112805,0.28528625,90157.0,90156.0,0.5344809]
[1765648113599,0.28528625,90157.0,90156.0,0.8952809]
[1765648113807,0.32919718,90157.0,90156.0,0.8952809]
[1765648115092,0.32982403,90157.0,90156.0,0.8952809]
[1765648115694,0.28528625,90157.0,90156.0,0.8952809]
[1765648115998,0.32982403,90157.0,90156.0,0.8952809]
[1765648116198,0.33007394,90157.0,90156.0,0.8952809]
[1765648117408,0.32960133,90157.0,90156.0,0.8952809]
[1765648118611,0.32927812,90157.0,90156.0,0.8952809]
[1765648118908,0.28528625,90157.0,90156.0,0.8952809]
[1765648119606,0.32927812,90157.0,90156.0,0.8952809]
[1765648120505,0.28528625,90157.0,90156.0,0.8952809]
[1765648120711,0.32859067,90157.0,90156.0,0.8952809]
[1765648121214,0.28528625,90157.0,90156.0,0.8952809]
[1765648121918,0.32965686,90157.0,90156.0,0.8952809]
[1765648123510,0.33009557,90157.0,90156.0,0.8952809]
[1765648124520,0.32930877,90157.0,90156.0,0.8952809]
[1765648124912,0.28528625,90157.0,90156.0,0.8952809]
[1765648125117,0.32930877,90157.0,90156.0,0.8952809]
[1765648125718,0.3292844,90157.0,90156.0,0.8952809]
[1765648126721,0.328975,90157.0,90156.0,0.8952809]
[1765648127221,0.28528625,90157.0,90156.0,0.8952809]
[1765648127421,0.328975,90157.0,90156.0,0.8952809]
[1765648127822,0.3291391,90157.0,90156.0,0.8952809]
[1765648129419,0.32949591,90157.0,90156.0,0.8952809]
[1765648130209,0.28528625,90157.0,90156.0,0.8952809]
[1765648130415,0.32999836,90157.0,90156.0,0.8952809]
[1765648130723,0.28528625,90157.0,90156.0,0.8952809]
[1765648130914,0.32999836,90157.0,90156.0,0.8952809]
[1765648131616,0.32991592,90157.0,90156.0,0.8952809]
[1765648132813,0.32862303,90157.0,90156.0,0.8952809]
[1765648133208,0.28528625,90157.0,90156.0,0.8952809]
[1765648133523,0.32862303,90157.0,90156.0,0.8952809]
[1765648133924,0.32873748,90157.0,90156.0,0.8952809]
[1765648134918,0.32873748,90157.0,90156.0,0.88419]
[1765648135119,0.33000579,90157.0,90156.0,0.88419]
[1765648135423,0.28528625,90157.0,90156.0,0.88419]
[1765648136421,0.33000579,90157.0,90156.0,0.88419]
[1765648137018,0.28528625,90157.0,90156.0,0.88419]
[1765648137412,0.3288897,90157.0,90156.0,0.88419]
[1765648138619,0.32978089,90157.0,90156.0,0.88419]
[1765648139724,0.3295526,90157.0,90156.0,0.88419]
[1765648139921,0.28528625,90157.0,90156.0,0.88419]
[1765648140225,0.3295526,90157.0,90156.0,0.88419]
[1765648140825,0.32885958,90157.0,90156.0,0.88419]
[1765648142023,0.33003253,90157.0,90156.0,0.88419]
[1765648142411,0.28528625,90157.0,90156.0,0.88419]
[1765648142916,0.33003253,90157.0,90156.0,0.88419]
[1765648144127,0.33003253,90157.0,90156.0,0.4077]
[1765648144426,0.14041,90148.0,90147.0,0.11306637]
[1765648144621,0.83301,90148.0,90147.0,0.11306637]
[1765648144826,0.83301,90148.0,90147.0,0.37796637]
[1765648145623,0.83301,90148.0,90147.0,0.37896637]
[1765648145824,0.83301,90148.0,90147.0,0.37996637]
[1765648161348,0.83301,90148.0,90147.0,0.11506637]
[1765648164445,0.83301,90148.0,90147.0,0.48776637]
[1765648165055,0.83301,90148.0,90147.0,0.11506637]
[1765648165751,0.83301,90148.0,90147.0,0.46906637]
[1765648166156,0.83301,90148.0,90147.0,0.11506637]
[1765648167153,0.83301,90148.0,90147.0,0.47086637]
[1765648167355,0.83301,90148.0,90147.0,0.80726637]
[1765648167546,0.83301,90148.0,90147.0,0.45146637]
[1765648167748,0.83301,90148.0,90147.0,0.59346637]
[1765648168245,0.83301,90148.0,90147.0,0.54456637]
[1765648168446,0.83301,90148.0,90147.0,0.11506637]
[1765648177055,0.83301,90148.0,90147.0,0.46606637]
[1765648177255,0.83301,90148.0,90147.0,0.11506637]
[1765648184263,0.83301,90148.0,90147.0,0.46496637]
[1765648184668,0.83301,90148.0,90147.0,0.46916637]
[1765648184963,0.83301,90148.0,90147.0,0.11506637]
[1765648185155,0.83301,90148.0,90147.0,0.66915847]
[1765648185361,0.80389,90148.0,90147.0,0.66915847]
[1765648185554,0.80389,90148.0,90147.0,0.49685847]
[1765648185867,0.80389,90148.0,90147.0,0.12615847]
[1765648193473,0.83344,90148.0,90147.0,0.12615847]
[1765648199171,0.83344,90148.0,90147.0,0.48695847]
[1765648204074,0.83344,90148.0,90147.0,0.47586637]
[1765648205080,0.83344,90148.0,90147.0,0.36296637]
[1765648205277,0.83344,90148.0,90146.0,0.27023637]
[1765648205278,1.08295,90148.0,90146.0,0.27023637]
[1765648205481,0.09403,90147.0,90146.0,0.27023637]
[1765648205780,1.08295,90148.0,90139.0,0.3608]
[1765648205781,0.09403,90143.0,90142.0,0.4573]
[1765648206084,0.11412,90140.0,90139.0,0.45703]
[1765648206470,0.11412,90140.0,90139.0,0.75763]
[1765648207690,0.11412,90140.0,90139.0,0.45903]
[1765648208065,0.11412,90140.0,90139.0,0.91943]
[1765648208271,0.11412,90140.0,90139.0,0.92143]
[1765648210477,0.11412,90140.0,90139.0,0.87314]
[1765648210682,0.11412,90140.0,90139.0,0.8252]
[1765648210874,0.11955267,90140.0,90139.0,0.4644]
[1765648211068,0.11955267,90140.0,90139.0,0.004]
[1765648211666,0.11955267,90140.0,90139.0,0.3718]
[1765648211871,0.11955267,90140.0,90139.0,0.004]
[1765648215278,0.11955267,90140.0,90139.0,0.05194]
[1765648216888,0.11955267,90140.0,90139.0,0.31954]
[1765648217990,0.11955267,90140.0,90139.0,0.2716]
[1765648218293,0.11955267,90140.0,90139.0,0.004]
[1765648220608,0.11955267,90140.0,90139.0,0.05194]
[1765648221109,0.11955267,90140.0,90139.0,0.30484]
[1765648222406,0.11955267,90140.0,90139.0,0.05194]
[1765648223408,0.11955267,90140.0,90139.0,0.10023]
[1765648223604,0.11955267,90140.0,90139.0,0.05194]
[1765648225402,0.11955267,90140.0,90139.0,0.04994]
[1765648225603,0.11955267,90140.0,90139.0,0.39024]
[1765648226909,0.12055267,90140.0,90139.0,0.38824]
[1765648229007,0.12055267,90140.0,90139.0,0.4338]
[1765648230608,0.12055267,90140.0,90139.0,0.38824]
[1765648231213,0.12055267,90140.0,90139.0,0.4338]
[1765648234203,0.00643267,90140.0,90139.0,0.444893]
[1765648240114,0.09575267,90140.0,90139.0,0.444893]
[1765648250218,0.05064267,90140.0,90139.0,0.444893]
[1765648250414,0.00643267,90140.0,90139.0,0.444893]
[1765648252824,0.00643267,90140.0,90139.0,0.805693]
[1765648263528,0.00543267,90140.0,90139.0,0.805693]
[1765648263838,0.0798743,90144.0,90143.0,0.0929225]
[1765648264033,0.1234843,90144.0,90143.0,0.0929225]
[1765648264234,0.12907478,90144.0,90143.0,0.0929225]
[1765648266041,0.17022478,90144.0,90143.0,0.0929225]
[1765648268143,0.12907478,90144.0,90143.0,0.0929225]
[1765648268441,0.08546478,90144.0,90143.0,0.0929225]
[1765648268642,0.12907478,90144.0,90143.0,0.0929225]
[1765648269141,0.17022478,90144.0,90143.0,0.0929225]
[1765648277151,0.09035048,90144.0,90143.0,0.0929225]
[1765648280457,0.09035048,90144.0,90143.0,0.4537225]
[1765648293670,0.17026457,90144.0,90143.0,0.4537225]
[1765648295071,0.17026457,90144.0,90143.0,0.8294225]
[1765648296572,0.17026457,90144.0,90143.0,0.4686225]
[1765648296772,0.17026457,90144.0,90143.0,0.8294225]
[1765648298765,0.09035048,90144.0,90143.0,0.8294225]
[1765648299575,0.17026457,90144.0,90143.0,0.8294225]
[1765648303281,0.09035048,90144.0,90143.0,0.8294225]
[1765648303578,0.04920048,90144.0,90143.0,0.8294225]
[1765648306980,0.00559048,90144.0,90143.0,0.8294225]
[1765648307186,0.03594,90144.0,90143.0,0.8294225]
[1765648307784,0.03594,90144.0,90143.0,0.4686225]
[1765648308086,0.03594,90144.0,90143.0,0.8294225]
[1765648308474,0.03594,90144.0,90143.0,0.4686225]
[1765648308680,0.03594,90144.0,90143.0,0.8294225]
[1765648311185,0.17691242,90151.0,90150.0,0.09642]
[1765648312686,0.17891242,90151.0,90150.0,0.09642]
[1765648312985,0.17991242,90151.0,90150.0,0.09642]
[1765648313884,0.08008109,90151.0,90150.0,0.09642]
[1765648321499,0.08008109,90151.0,90150.0,0.45072]
[1765648321690,0.08008109,90151.0,90150.0,0.45372]
[1765648322095,0.08008109,90151.0,90150.0,0.46482]
[1765648323795,0.17991242,90151.0,90150.0,0.46482]
[1765648329496,0.08008109,90151.0,90150.0,0.46482]
[1765648333696,0.21984496,90151.0,90150.0,0.46482]
[1765648334597,0.08008109,90151.0,90150.0,0.46482]
[1765648342807,0.77268109,90151.0,90150.0,0.46482]
[1765648343804,0.87257615,90151.0,90150.0,0.46482]
[1765648361322,0.17997615,90151.0,90150.0,0.46482]
[1765648361513,0.87253615,90151.0,90150.0,0.46482]
[1765648364323,0.77264109,90151.0,90150.0,0.46482]
[1765648366923,0.78268109,90151.0,90150.0,0.3684]
[1765648367111,0.88258189,90151.0,90150.0,0.3684]
[1765648367314,0.06294,90141.0,90140.0,0.1874613]
[1765648367515,0.06294,90141.0,90140.0,0.06432]
[1765648367913,0.06294,90141.0,90140.0,0.43362]
[1765648368122,0.06294,90141.0,90140.0,0.4527]
[1765648369023,0.14285276,90141.0,90140.0,0.4527]
[1765648369226,0.06294,90141.0,90140.0,0.4527]